bitfinex-derivatives/quotes_ETHF0:USTF0_20230902
["timestamp","ask_amount","ask_price","bid_price","bid_amount"]
[1693673529288,2.69763334,1636.6,1636.5,15.16581]
[1693673529484,7.28117334,1636.6,1636.5,15.16581]
[1693673530088,7.28516354,1636.6,1636.5,17.45774]
[1693673530881,6.97952997,1636.6,1636.5,17.45774]
[1693673532492,6.97952997,1636.6,1636.5,14.93064]
[1693673532989,7.28516416,1636.6,1636.5,7.78278]
[1693673533191,7.18493439,1636.6,1636.5,7.78278]
[1693673533587,7.18493439,1636.6,1636.5,5.491]
[1693673533787,10.37117372,1636.6,1636.5,5.491]
[1693673535692,10.37117372,1636.6,1636.4,12.45912]
[1693673535893,2.39281491,1636.5,1636.4,12.45912]
[1693673536092,6.97663491,1636.5,1636.4,12.45912]
[1693673536684,4.58382,1636.5,1636.4,12.45912]
[1693673537088,4.58382,1636.5,1636.4,15.68594768]
[1693673537591,7.45098352,1636.5,1636.4,15.68594768]
[1693673538189,2.29191,1636.5,1636.4,15.68594768]
[1693673539686,5.15907352,1636.5,1636.4,15.68594768]
[1693673539888,7.45098352,1636.5,1636.4,15.68594768]
[1693673541092,5.15907352,1636.5,1636.4,15.68594768]
[1693673544096,7.45498065,1636.5,1636.4,15.68594768]
[1693673544292,7.45498065,1636.5,1636.4,13.39389768]
[1693673544900,7.45498065,1636.5,1636.4,12.45912]
[1693673549901,7.45498065,1636.5,1636.4,10.07492]
[1693673550102,19.79977713,1636.5,1636.3,1.41767666]
[1693673550299,19.79977713,1636.5,1636.1,14.96838]
[1693673550300,24.58279204,1636.5,1636.1,14.96838]
[1693673550505,27.21019204,1636.5,1636.1,14.96845]
[1693673550702,2.39281491,1636.3,1636.1,14.96845]
[1693673550903,7.42943,1636.2,1636.1,14.96845]
[1693673551509,5.1371,1636.2,1636.1,14.96845]
[1693673551911,5.1371,1636.2,1636.1,9.47745]
[1693673552112,5.1371,1636.2,1636.1,9.9639302]
[1693673556814,2.26993648,1636.2,1636.1,9.9639302]
[1693673557017,2.86716352,1636.2,1636.1,9.9639302]
[1693673557516,2.39281491,1636.4,1636.1,17.85975013]
[1693673557713,15.09916204,1636.5,1636.3,6.87657]
[1693673557922,12.47176204,1636.5,1636.3,6.87657]
[1693673558119,14.76372204,1636.5,1636.3,11.79857]
[1693673558321,17.63088556,1636.5,1636.3,11.79857]
[1693673558521,3.88738187,1636.4,1636.3,11.79857]
[1693673558717,4.5841,1636.4,1636.3,11.79857]
[1693673559121,4.58807919,1636.4,1636.3,11.79857]
[1693673560220,0.00397919,1636.4,1636.3,11.79857]
[1693673561017,0.00397919,1636.4,1636.3,19.58176]
[1693673563425,2.87114271,1636.4,1636.3,19.58176]
[1693673564319,2.87114271,1636.4,1636.3,17.28957]
[1693673567120,9.74729271,1636.4,1636.3,2.4116]
[1693673567424,9.74729271,1636.4,1636.2,10.07556]
[1693673567624,12.14939271,1636.4,1636.2,12.54596]
[1693673568025,14.41932919,1636.4,1636.2,12.54596]
[1693673574027,1.59533187,1636.3,1636.2,12.54596]
[1693673574227,6.17971187,1636.3,1636.2,12.54596]
[1693673575127,3.89148799,1636.3,1636.2,12.54596]
[1693673575321,6.18367799,1636.3,1636.2,12.54596]
[1693673579123,6.18367799,1636.3,1636.2,7.9614]
[1693673579328,10.8686829,1636.3,1636.2,7.78333]
[1693673579827,16.3596829,1636.3,1636.1,9.7857102]
[1693673580223,6.73243187,1636.2,1636.1,9.7857102]
[1693673580529,5.1371,1636.2,1636.1,9.7857102]
[1693673581031,5.1371,1636.2,1636.1,12.3226102]
[1693673581930,2.26993648,1636.2,1636.1,17.8136102]
[1693673582523,7.10384612,1636.3,1636.1,17.8136102]
[1693673582719,9.97100964,1636.3,1636.1,17.8136102]
[1693673584130,9.97100964,1636.3,1636.1,20.1061002]
[1693673585532,0.00396612,1636.3,1636.2,5.491]
[1693673585732,0.00396612,1636.3,1636.2,21.37348443]
[1693673586134,4.58416,1636.4,1636.2,21.37348443]
[1693673586935,6.87626,1636.4,1636.2,21.37348443]
[1693673587435,6.87626,1636.4,1636.2,19.08115443]
[1693673587635,9.74342352,1636.4,1636.2,19.08115443]
[1693673588538,6.87626,1636.4,1636.2,19.08115443]
[1693673588739,6.87602,1636.5,1636.3,5.491]
[1693673589034,6.500751,1636.5,1636.4,4.58408]
[1693673589234,4.208731,1636.5,1636.4,6.87615]
[1693673589535,2.39281491,1636.5,1636.4,9.47855]
[1693673589931,4.68472491,1636.5,1636.4,9.47855]
[1693673590132,2.39281491,1636.5,1636.4,9.47855]
[1693673591940,2.39281491,1636.5,1636.4,14.96955]
[1693673592340,4.68472491,1636.5,1636.4,14.96955]
[1693673593244,9.84379843,1636.5,1636.4,14.96955]
[1693673593543,6.97663491,1636.5,1636.4,14.96955]
[1693673594743,9.84379843,1636.5,1636.4,14.96955]
[1693673596038,7.45098352,1636.5,1636.4,14.96955]
[1693673596643,7.45098352,1636.5,1636.4,12.67748]
[1693673596839,9.74289352,1636.5,1636.4,7.78304]
[1693673597446,9.74289352,1636.5,1636.4,5.491]
[1693673600147,9.74289352,1636.5,1636.4,7.78307]
[1693673600347,12.03480352,1636.5,1636.3,5.491]
[1693673600543,7.76093648,1636.4,1636.2,6.87674]
[1693673600738,7.45152352,1636.3,1636.2,6.87674]
[1693673601250,7.45534308,1636.3,1636.2,6.87674]
[1693673604251,7.55597799,1636.3,1636.2,6.87674]
[1693673605954,9.84816799,1636.3,1636.2,6.87674]
[1693673606458,9.84816799,1636.3,1636.2,4.58448]
[1693673607151,12.14035799,1636.3,1636.2,4.58448]
[1693673607853,9.84816799,1636.3,1636.2,6.87681]
[1693673608858,11.44312143,1636.3,1636.2,6.87681]
[1693673609048,4.46593652,1636.3,1636.2,6.87681]
[1693673609249,1.598773,1636.3,1636.2,11.72066]
[1693673610851,1.598773,1636.3,1636.2,17.21166]
[1693673611258,0.00381956,1636.3,1636.2,17.21166]
[1693673612256,6.87633,1636.4,1636.2,17.21166]
[1693673612553,4.58419,1636.4,1636.3,12.36757]
[1693673612749,7.45135352,1636.4,1636.3,12.36757]
[1693673613252,9.74731027,1636.4,1636.3,12.36757]
[1693673613450,6.88014675,1636.4,1636.3,12.36757]
[1693673614051,4.58800675,1636.4,1636.3,12.36757]
[1693673614346,2.29586675,1636.4,1636.3,12.36757]
[1693673615551,4.58791675,1636.4,1636.3,12.36757]
[1693673615858,0.00381675,1636.4,1636.3,12.36757]
[1693673616358,0.00381675,1636.4,1636.3,14.92817]
[1693673616657,2.29586675,1636.4,1636.3,14.92817]
[1693673618056,4.58791675,1636.4,1636.3,14.92817]
[1693673619353,7.28639195,1636.4,1636.3,14.92817]
[1693673619558,10.15355547,1636.4,1636.3,14.92817]
[1693673624656,7.76074024,1636.4,1636.3,14.92817]
[1693673624856,10.15341973,1636.4,1636.3,14.92817]
[1693673626355,7.45508027,1636.4,1636.3,14.92817]
[1693673628970,7.45508027,1636.4,1636.3,15.41983737]
[1693673629757,4.58791675,1636.4,1636.3,15.41983737]
[1693673632160,7.45508027,1636.4,1636.3,15.41983737]
[1693673632360,4.58791675,1636.4,1636.3,15.41983737]
[1693673632761,7.45508027,1636.4,1636.3,15.41983737]
[1693673633263,4.58791675,1636.4,1636.3,15.41983737]
[1693673633563,7.45508027,1636.4,1636.3,15.41983737]
[1693673633863,4.58791675,1636.4,1636.3,15.41983737]
[1693673634765,7.45508027,1636.4,1636.3,15.41983737]
[1693673637758,4.58791675,1636.4,1636.3,15.41983737]
[1693673639773,4.58791675,1636.4,1636.3,16.34709008]
[1693673641277,6.98085919,1636.4,1636.3,16.34709008]
[1693673641782,6.98085919,1636.4,1636.3,15.41983737]
[1693673643776,9.84802271,1636.4,1636.3,15.41983737]
[1693673644483,10.15367935,1636.4,1636.3,15.41983737]
[1693673644683,9.84802271,1636.4,1636.3,15.41983737]
[1693673644881,10.15367946,1636.4,1636.3,15.41983737]
[1693673645483,9.84802271,1636.4,1636.3,15.41983737]
[1693673645680,22.49871602,1636.4,1636.3,0.49166737]
[1693673645877,23.2963635,1636.4,1636.1,8.2698702]
[1693673646178,8.47239498,1636.2,1636.1,8.2699502]
[1693673646373,13.60949498,1636.2,1636.1,8.38228612]
[1693673646571,11.31716498,1636.2,1636.1,10.5624202]
[1693673647184,11.32080448,1636.2,1636.1,10.5624202]
[1693673648279,11.32080448,1636.2,1636.1,12.8549102]
[1693673648482,9.7253995,1636.2,1636.1,12.8549102]
[1693673649184,9.7253995,1636.2,1636.1,5.0714202]
[1693673649478,12.0177295,1636.2,1636.1,5.0714202]
[1693673649682,12.0177295,1636.2,1636.1,2.7789502]
[1693673651879,17.5087295,1636.2,1636.1,0.4864802]
[1693673652184,17.5087295,1636.2,1636.0,7.78616455]
[1693673652380,17.5087295,1636.2,1636.0,5.49362455]
[1693673654284,17.5087295,1636.2,1636.0,7.78625455]
[1693673654481,17.5087295,1636.2,1636.0,8.2731932]
[1693673657187,17.5087295,1636.2,1636.0,5.9805632]
[1693673662084,17.5087295,1636.2,1636.0,8.2731932]
[1693673662294,17.5087295,1636.2,1636.0,5.9805632]
[1693673663490,1.59540498,1636.1,1636.0,5.9805632]
[1693673663686,6.18038498,1636.1,1636.0,5.9805632]
[1693673664289,6.18403637,1636.1,1636.0,5.9805632]
[1693673664793,6.18403637,1636.1,1636.0,8.2731932]
[1693673665293,6.18403637,1636.1,1636.0,5.9805632]
[1693673665686,8.47652637,1636.1,1636.0,3.6880232]
[1693673665888,13.96752637,1636.1,1636.0,3.6880232]
[1693673666389,13.96752637,1636.1,1636.0,1.3954932]
[1693673666589,13.96752637,1636.1,1635.9,12.00013]
[1693673666787,9.72236,1636.0,1635.9,12.00013]
[1693673666994,9.72236,1636.0,1635.9,13.42575752]
[1693673667294,9.72236,1636.0,1635.9,17.44894144]
[1693673671294,9.72236,1636.0,1635.9,19.85406369]
[1693673678094,9.72236,1636.0,1635.9,19.74171144]
[1693673679406,9.72600286,1636.0,1635.9,19.74171144]
[1693673682708,9.72600286,1636.0,1635.9,19.74171144]
[1693673686208,9.72600286,1636.0,1635.9,19.85406339]
[1693673692114,9.72600286,1636.0,1635.9,18.92985757]
[1693673693210,9.72600286,1636.0,1635.9,18.81750562]
[1693673693816,11.31835733,1636.0,1635.9,18.81750562]
[1693673697415,6.18125733,1636.0,1635.9,18.81750562]
[1693673697620,1.59599733,1636.0,1635.9,27.09327562]
[1693673697821,1.59599733,1636.0,1635.9,27.20562396]
[1693673698420,1.43177047,1636.0,1635.9,27.20562396]
[1693673698608,0.96690861,1636.0,1635.9,27.20562396]
[1693673698812,2.38853171,1636.1,1635.9,27.20562396]
[1693673699009,2.38853171,1636.1,1635.9,27.09327562]
[1693673699213,0.00350402,1636.0,1635.9,27.09327562]
[1693673699413,0.00350402,1636.0,1635.9,27.20561938]
[1693673700923,0.00350402,1636.0,1635.9,27.20561926]
[1693673701223,6.87719,1636.2,1635.9,27.20561926]
[1693673701525,4.58473,1636.2,1635.9,27.09327562]
[1693673701919,4.58473,1636.2,1636.0,5.491]
[1693673702114,4.58473,1636.2,1636.1,4.585]
[1693673702319,9.74436352,1636.2,1636.1,4.585]
[1693673702618,9.74436352,1636.2,1636.1,7.2047]
[1693673706224,9.74788182,1636.2,1636.1,7.2047]
[1693673708933,13.23830157,1636.2,1636.1,7.2047]
[1693673714345,13.23830157,1636.2,1636.1,7.69214993]
[1693673716047,9.74788182,1636.2,1636.1,7.69214993]
[1693673718948,9.74788182,1636.2,1636.1,8.18414993]
[1693673720747,9.74788182,1636.2,1636.1,7.69214993]
[1693673723656,9.74788182,1636.2,1636.1,7.80449844]
[1693673726761,9.74788182,1636.2,1636.1,8.29649844]
[1693673728060,9.74788182,1636.2,1636.1,7.80449844]
[1693673728554,9.74788182,1636.2,1636.1,8.29649844]
[1693673729456,6.8807183,1636.2,1636.1,8.29649844]
[1693673730162,6.8807183,1636.2,1636.1,9.21147596]
[1693673730359,9.74788182,1636.2,1636.1,9.21147596]
[1693673731156,13.23829853,1636.2,1636.1,9.21147596]
[1693673731461,13.23829853,1636.2,1636.1,8.71947596]
[1693673731657,13.23829853,1636.2,1636.1,8.60712745]
[1693673732360,13.240531,1636.2,1636.1,8.60712745]
[1693673732864,13.240531,1636.2,1636.1,7.69214993]
[1693673735466,13.240531,1636.2,1636.1,8.18414993]
[1693673736153,13.240531,1636.2,1636.1,7.69214993]
[1693673736360,13.240531,1636.2,1636.1,8.18414993]
[1693673736766,13.240531,1636.2,1636.1,7.69214993]
[1693673736962,13.240531,1636.2,1636.1,8.18414993]
[1693673738660,3.49616748,1636.2,1636.1,10.47664993]
[1693673738858,2.39517644,1636.2,1636.1,25.0221911]
[1693673739161,0.00553072,1636.2,1636.1,25.13452258]
[1693673739560,0.00553072,1636.2,1636.1,27.54112258]
[1693673740266,2.29209,1636.4,1636.1,27.54112258]
[1693673740460,2.29209,1636.4,1636.3,5.491]
[1693673740665,2.29209,1636.4,1636.3,12.85966]
[1693673740865,2.29209,1636.4,1636.3,15.30356]
[1693673742068,4.58418,1636.4,1636.3,15.30356]
[1693673747270,4.58972212,1636.4,1636.3,15.30356]
[1693673750671,4.8899,1636.7,1636.3,22.0383929]
[1693673750871,18.37817,1636.8,1636.6,5.491]
[1693673751069,13.795,1636.8,1636.7,10.5663]
[1693673751270,11.26091,1636.9,1636.7,12.85795]
[1693673751876,11.26091,1636.9,1636.8,5.491]
[1693673752076,11.26091,1636.9,1636.8,7.78251]
[1693673752977,11.83656352,1636.9,1636.8,10.07402]
[1693673753173,8.9694,1636.9,1636.8,10.07402]
[1693673753375,9.27500454,1636.9,1636.8,9.15720638]
[1693673754375,13.25589072,1636.9,1636.8,9.15720638]
[1693673755473,19.36799174,1636.9,1636.8,9.15720638]
[1693673755775,13.25589072,1636.9,1636.8,9.15720638]
[1693673756978,9.28409072,1636.9,1636.8,4.57418638]
[1693673757274,12.15125424,1636.9,1636.8,4.57418638]
[1693673757471,18.26327579,1636.9,1636.8,4.57418638]
[1693673758472,18.26327579,1636.9,1636.8,3.04618034]
[1693673759175,18.26820741,1636.9,1636.8,3.04618034]
[1693673761378,7.86969514,1636.9,1636.8,3.04618034]
[1693673761882,7.86969514,1636.9,1636.7,8.6133]
[1693673762084,2.26993648,1636.8,1636.7,5.491]
[1693673762377,7.76093648,1636.8,1636.6,0.93590714]
[1693673762582,2.86716352,1636.7,1636.4,7.9759]
[1693673762769,7.98556352,1636.7,1636.4,7.9759]
[1693673762970,2.26993648,1636.6,1636.4,7.9759]
[1693673763778,2.86716352,1636.5,1636.4,7.9759]
[1693673763983,2.86716352,1636.5,1636.4,8.4679]
[1693673764382,2.86716352,1636.5,1636.4,7.9759]
[1693673764569,2.86716352,1636.5,1636.4,5.491]
[1693673768377,3.17282067,1636.5,1636.4,5.491]
[1693673768572,3.17282067,1636.5,1636.4,5.983]
[1693673768978,6.35262139,1636.5,1636.4,5.983]
[1693673769180,6.35731135,1636.5,1636.4,5.983]
[1693673769373,6.35731135,1636.5,1636.4,5.491]
[1693673774787,6.35731135,1636.5,1636.4,5.97714974]
[1693673775486,6.35731135,1636.5,1636.4,0.48614974]
[1693673775690,6.35731135,1636.5,1636.3,8.096]
[1693673775889,2.26993648,1636.4,1636.3,8.096]
[1693673777192,2.26993648,1636.4,1636.2,0.90722071]
[1693673777388,2.26993648,1636.4,1636.1,5.491]
[1693673777389,2.86716352,1636.3,1636.1,5.491]
[1693673777892,2.86716352,1636.3,1636.1,5.98624671]
[1693673778282,2.26993648,1636.2,1636.1,5.98624671]
[1693673779493,2.26993648,1636.2,1636.1,8.41544671]
[1693673780089,2.26993648,1636.2,1636.1,9.8279273]
[1693673780295,2.26993648,1636.2,1636.1,9.3359273]
[1693673784197,2.27463185,1636.2,1636.1,9.3359273]
[1693673784998,11.25114586,1636.2,1635.9,5.491]
[1693673785197,21.72418244,1636.1,1635.3,0.0611]
[1693673785496,11.24646425,1636.0,1635.7,12.3859975]
[1693673785794,2.86716352,1635.9,1635.7,14.8199975]
[1693673785997,2.86716352,1635.9,1635.7,17.2925975]
[1693673786197,2.86716352,1635.9,1635.7,17.7845975]
[1693673787401,7.45285352,1635.9,1635.8,4.58584]
[1693673787694,2.26993648,1636.0,1635.8,12.43086]
[1693673787894,2.26993648,1636.0,1635.9,5.491]
[1693673788101,6.85529648,1636.0,1635.9,12.86134]
[1693673788595,4.58536,1636.0,1635.9,12.86134]
[1693673788896,4.58515,1636.1,1635.9,12.86134]
[1693673789192,2.29254,1636.1,1635.9,12.86134]
[1693673789601,4.58515,1636.1,1636.0,18.77312445]
[1693673789901,10.05064622,1636.1,1636.0,16.48048445]
[1693673790097,10.05064622,1636.1,1636.0,18.94028445]
[1693673790698,10.05064622,1636.1,1636.0,14.35500445]
[1693673791801,9.74492352,1636.1,1636.0,14.35500445]
[1693673795505,9.74492352,1636.1,1636.0,16.64764445]
[1693673797403,9.74492352,1636.1,1636.0,18.94028445]
[1693673798994,12.12785464,1636.1,1636.0,18.94028445]
[1693673799199,12.13254224,1636.1,1636.0,18.94028445]
[1693673800101,9.26537872,1636.1,1636.0,18.94028445]
[1693673800603,12.13254224,1636.1,1636.0,18.94028445]
[1693673801399,12.43826241,1636.1,1636.0,18.94028445]
[1693673801699,4.68011872,1636.1,1636.0,21.23292445]
[1693673801895,0.0046876,1636.1,1636.0,23.63996445]
[1693673802302,2.38293112,1636.2,1636.1,0.492]
[1693673802597,2.38293112,1636.3,1636.1,21.33606859]
[1693673802801,2.38293112,1636.3,1636.2,5.491]
[1693673803000,2.38293112,1636.3,1636.2,15.15234]
[1693673803200,2.38706716,1636.3,1636.2,21.70078607]
[1693673803402,2.69274344,1636.3,1636.2,21.70078607]
[1693673803804,2.38706716,1636.3,1636.2,21.70078607]
[1693673804503,2.69274154,1636.3,1636.2,21.70078607]
[1693673805209,2.69274154,1636.3,1636.2,19.40843607]
[1693673805706,2.69274154,1636.3,1636.2,13.91743607]
[1693673805907,2.69274154,1636.3,1636.2,19.40843607]
[1693673806408,0.30981042,1636.3,1636.2,19.40843607]
[1693673806711,2.69558853,1636.3,1636.2,19.40843607]
[1693673806908,0.00413604,1636.3,1636.2,19.40843607]
[1693673807408,4.58423,1636.4,1636.2,21.84323607]
[1693673807704,4.58423,1636.4,1636.3,5.491]
[1693673807905,4.58423,1636.4,1636.3,10.07538]
[1693673808598,7.45139352,1636.4,1636.3,10.07538]
[1693673810206,7.45553861,1636.4,1636.3,10.07538]
[1693673811612,4.58837509,1636.4,1636.3,12.36757]
[1693673812011,2.29624509,1636.4,1636.3,12.36757]
[1693673812608,2.29624509,1636.4,1636.3,14.95677]
[1693673813011,5.16340861,1636.4,1636.3,14.95677]
[1693673813412,2.87130861,1636.4,1636.3,14.95677]
[1693673817013,9.74742861,1636.4,1636.3,7.78319]
[1693673817209,12.03946861,1636.4,1636.2,7.78325]
[1693673817514,2.26993648,1636.3,1636.2,8.27452912]
[1693673817714,9.14650648,1636.3,1636.2,8.27452912]
[1693673818212,9.1506438,1636.3,1636.2,8.27452912]
[1693673820212,9.1506438,1636.3,1636.2,10.56684912]
[1693673820816,11.53642191,1636.3,1636.2,10.56684912]
[1693673821918,11.53642191,1636.3,1636.2,5.07584912]
[1693673823911,13.1283232,1636.3,1636.2,5.07584912]
[1693673825120,13.1283232,1636.3,1636.2,2.78352912]
[1693673825319,11.53642191,1636.3,1636.2,2.78352912]
[1693673826523,13.82861191,1636.3,1636.2,0.49127912]
[1693673826823,13.82861191,1636.3,1636.1,5.491]
[1693673827017,1.59188945,1636.2,1636.1,5.491]
[1693673827222,11.33601297,1636.2,1636.1,5.491]
[1693673827619,11.33601297,1636.2,1636.1,7.78346]
[1693673829124,9.74412352,1636.2,1636.1,10.07593]
[1693673829325,9.74825306,1636.2,1636.1,10.07593]
[1693673831328,9.74825306,1636.2,1636.1,10.56793]
[1693673831927,9.74825306,1636.2,1636.1,10.07593]
[1693673832330,9.74825306,1636.2,1636.1,5.491]
[1693673834522,9.74825306,1636.2,1636.1,7.78346]
[1693673834729,9.74825306,1636.2,1636.1,5.491]
[1693673837734,12.04057306,1636.2,1636.1,5.491]
[1693673838131,9.74825306,1636.2,1636.1,5.491]
[1693673839031,9.74825306,1636.2,1636.1,7.78345]
[1693673839326,9.74825306,1636.2,1636.1,5.491]
[1693673840935,9.74825306,1636.2,1636.1,7.78345]
[1693673841433,9.74825306,1636.2,1636.1,5.491]
[1693673841639,9.74825306,1636.2,1636.1,7.78347]
[1693673843540,9.74825306,1636.2,1636.1,5.491]
[1693673844337,10.05396842,1636.2,1636.1,7.78347]
[1693673844527,13.23390084,1636.2,1636.1,7.78347]
[1693673847140,13.23390084,1636.2,1636.1,10.07594]
[1693673847742,13.23986942,1636.2,1636.1,10.07594]
[1693673851043,13.23986942,1636.2,1636.1,7.78347]
[1693673851238,9.74825306,1636.2,1636.1,7.78347]
[1693673851940,9.74825306,1636.2,1636.1,2.29247]
[1693673852444,9.74825306,1636.2,1636.1,4.58491]
[1693673855944,9.74825306,1636.2,1636.1,2.29244]
[1693673857043,9.74825306,1636.2,1636.1,4.71474]
[1693673857346,9.74825306,1636.2,1636.1,7.00718]
[1693673858047,9.74825306,1636.2,1636.1,4.71474]
[1693673859142,12.44333698,1636.2,1636.1,7.00718]
[1693673860641,12.44333698,1636.2,1636.1,2.4223]
[1693673860847,10.05396905,1636.2,1636.1,4.71471]
[1693673861545,12.44440767,1636.2,1636.1,4.71471]
[1693673861747,13.23986955,1636.2,1636.1,4.71471]
[1693673862349,13.23986955,1636.2,1636.1,2.4223]
[1693673865150,15.53218955,1636.2,1636.1,2.4223]
[1693673866450,12.04057306,1636.2,1636.1,2.4223]
[1693673867449,12.04057306,1636.2,1636.0,0.47733886]
[1693673867650,17.44665524,1636.1,1635.8,5.045]
[1693673867853,6.87822,1635.9,1635.8,5.045]
[1693673868349,6.88233477,1635.9,1635.8,10.12276]
[1693673869347,6.88233477,1635.9,1635.8,9.63076]
[1693673869654,6.88233477,1635.9,1635.8,7.33788]
[1693673871853,6.88233477,1635.9,1635.8,12.82888]
[1693673872257,6.88233477,1635.9,1635.8,12.82885]
[1693673873346,6.88233477,1635.9,1635.8,13.31724015]
[1693673874352,8.47565443,1635.9,1635.8,13.31724015]
[1693673874546,8.47565443,1635.9,1635.8,13.80924015]
[1693673875045,1.59743443,1635.9,1635.8,18.39494015]
[1693673875253,0.00411477,1635.9,1635.8,18.39494015]
[1693673877259,0.00411477,1635.9,1635.8,20.68780015]
[1693673878251,0.00411477,1635.9,1635.8,18.39494015]
[1693673879646,1.59331966,1636.0,1635.8,20.68780015]
[1693673879856,1.59331966,1636.0,1635.9,12.36907]
[1693673880256,1.59728649,1636.0,1635.9,12.36907]
[1693673881355,0.00396683,1636.0,1635.9,12.36907]
[1693673884072,0.00396683,1636.0,1635.9,21.6163416]
[1693673884363,6.8767,1636.3,1635.9,22.1083416]
[1693673884565,19.25966081,1636.4,1636.2,12.36781]
[1693673884566,4.58414,1636.4,1636.2,12.36781]
[1693673884760,6.8762,1636.4,1636.3,0.492]
[1693673884955,9.74336352,1636.4,1636.2,17.24254]
[1693673885162,13.60661966,1636.4,1636.2,14.95027]
[1693673885357,7.32531595,1636.3,1636.2,14.95027]
[1693673887167,5.03318595,1636.3,1636.2,15.44227]
[1693673888862,7.32531595,1636.3,1636.2,12.658]
[1693673889468,10.81764608,1636.3,1636.2,13.15]
[1693673890170,10.81764608,1636.3,1636.2,15.44229]
[1693673892166,8.52551608,1636.3,1636.2,15.44229]
[1693673894965,10.81767608,1636.3,1636.2,13.15]
[1693673896376,7.32534595,1636.3,1636.2,13.15]
[1693673896674,7.32534595,1636.3,1636.2,13.6415936]
[1693673896868,7.32534595,1636.3,1636.2,8.1505936]
[1693673897064,7.32534595,1636.3,1636.2,15.9338936]
[1693673901585,7.32534595,1636.3,1636.2,15.4418936]
[1693673902778,7.32534595,1636.3,1636.2,15.9338936]
[1693673903880,7.32534595,1636.3,1636.2,15.4418936]
[1693673904084,6.88010502,1636.3,1636.2,15.9338936]
[1693673911592,8.47268127,1636.3,1636.2,15.9338936]
[1693673912592,6.18052127,1636.3,1636.2,15.9338936]
[1693673914287,1.59626127,1636.3,1636.2,18.2261936]
[1693673914497,1.11043347,1636.4,1636.2,32.64017933]
[1693673914791,2.2919,1636.5,1636.3,5.491]
[1693673914989,32.34723932,1636.6,1636.4,12.36706]
[1693673915187,32.34723932,1636.6,1636.5,5.983]
[1693673915188,7.77035932,1636.6,1636.5,5.983]
[1693673915389,4.88936605,1636.6,1636.5,10.56676]
[1693673915692,7.76995932,1636.7,1636.5,12.85864]
[1693673915892,7.76995932,1636.7,1636.6,10.07448]
[1693673916194,8.0755974,1636.7,1636.6,10.07448]
[1693673916395,8.0755974,1636.7,1636.6,12.63818]
[1693673918595,4.58332,1636.7,1636.6,12.63818]
[1693673919287,7.45048352,1636.7,1636.6,12.63818]
[1693673920498,4.5832,1636.7,1636.6,12.63818]
[1693673920697,9.74196352,1636.7,1636.6,8.0547]
[1693673922296,9.74553776,1636.7,1636.6,8.0547]
[1693673923396,9.74553776,1636.7,1636.6,10.34644]
[1693673926300,9.74553776,1636.7,1636.6,8.0547]
[1693673928396,9.74553776,1636.7,1636.6,10.84145524]
[1693673928593,9.74553776,1636.7,1636.6,8.54971524]
[1693673929104,9.74553776,1636.7,1636.6,10.84145524]
[1693673929297,9.74553776,1636.7,1636.6,8.54971524]
[1693673930003,9.74553776,1636.7,1636.6,10.84145524]
[1693673932701,9.74553776,1636.7,1636.6,8.54971524]
[1693673933707,13.23780626,1636.7,1636.6,5.98601524]
[1693673933898,13.23780626,1636.7,1636.6,8.27775524]
[1693673934304,10.37064274,1636.7,1636.6,8.27775524]
[1693673935406,13.23780626,1636.7,1636.6,8.27775524]
[1693673937102,13.23780626,1636.7,1636.6,5.98601524]
[1693673941414,15.52940626,1636.7,1636.6,5.98601524]
[1693673941910,12.03713776,1636.7,1636.6,5.98601524]
[1693673946817,9.74553776,1636.7,1636.6,5.98601524]
[1693673948519,9.74553776,1636.7,1636.6,8.27776524]
[1693673948821,13.2378076,1636.7,1636.6,5.98601524]
[1693673949723,13.2378076,1636.7,1636.6,8.27775524]
[1693673949914,13.2378076,1636.7,1636.6,8.76975524]
[1693673950819,13.2378076,1636.7,1636.6,8.27775524]
[1693673954641,13.23657621,1636.7,1636.6,8.27775524]
[1693673956836,9.74553776,1636.7,1636.6,8.76975524]
[1693673959345,9.74553776,1636.7,1636.6,8.27775524]
[1693673963846,19.83987885,1636.7,1636.6,8.27775524]
[1693673964045,20.14550796,1636.7,1636.6,8.27775524]
[1693673965651,20.14550796,1636.7,1636.6,5.98601524]
[1693673971953,9.74553776,1636.7,1636.6,5.98601524]
[1693673972354,9.74553776,1636.7,1636.6,8.27776524]
[1693673973251,9.74553776,1636.7,1636.6,5.98601524]
[1693673975158,9.74553776,1636.7,1636.6,8.27775524]
[1693673975555,9.74553776,1636.7,1636.6,5.98601524]
[1693673977058,12.03713776,1636.7,1636.6,5.98601524]
[1693673977259,19.92084289,1636.7,1636.6,0.49501524]
[1693673977559,24.99917127,1636.7,1636.4,15.96839045]
[1693673977759,27.51667127,1636.7,1636.4,15.96839045]
[1693673978056,27.51667127,1636.7,1636.4,16.46637946]
[1693673978258,22.43834289,1636.7,1636.4,16.46637946]
[1693673978759,2.26993648,1636.6,1636.4,16.46637946]
[1693673978955,7.7740535,1636.5,1636.4,16.46637946]
[1693673979158,8.07970017,1636.5,1636.4,16.95837946]
[1693673979356,8.08311687,1636.5,1636.4,16.95837946]
[1693673979555,10.95028039,1636.5,1636.4,18.75840946]
[1693673981462,10.95028039,1636.5,1636.4,19.25040946]
[1693673981857,8.08311687,1636.5,1636.4,19.25040946]
[1693673982059,8.08311687,1636.5,1636.4,18.33600901]
[1693673983256,5.79122687,1636.5,1636.4,18.33600901]
[1693673983461,2.60095337,1636.5,1636.4,18.33600901]
[1693673983657,2.70083097,1636.5,1636.4,18.33600901]
[1693673983853,2.3951843,1636.5,1636.4,20.62803901]
[1693673986164,0.0034167,1636.5,1636.4,20.62803901]
[1693673987364,4.58329,1636.7,1636.4,20.62803901]
[1693673987564,2.29175,1636.6,1636.4,15.13703901]
[1693673987767,2.29175,1636.6,1636.5,5.491]
[1693673987966,2.29175,1636.6,1636.5,12.36664]
[1693673989164,6.87502,1636.7,1636.5,12.36664]
[1693673989365,6.87502,1636.7,1636.6,5.491]
[1693673989562,6.87502,1636.7,1636.6,10.56648]
[1693673989761,4.58329,1636.7,1636.6,10.56648]
[1693673990565,2.2916,1636.7,1636.6,12.85822]
[1693673990766,4.5832,1636.7,1636.6,12.85822]
[1693673991163,4.5832,1636.7,1636.6,10.56648]
[1693673994167,7.28154976,1636.7,1636.6,10.56648]
[1693673994367,7.28484743,1636.7,1636.6,10.56648]
[1693673994869,9.57644743,1636.7,1636.6,10.56648]
[1693674000973,9.27082189,1636.7,1636.6,10.56648]
[1693674001164,11.17159559,1636.7,1636.6,10.56648]
[1693674002271,14.03875911,1636.7,1636.6,7.78274]
[1693674002470,22.44295158,1636.7,1636.6,5.491]